Cogmind - Beta 14 @@@ ROGUE MODE // 2024.08.10 @ 15:34:03 // AFD2019/Pay2Buy Player: Minty Result: Destroyed by S-10 Pest with Light Assault Rifle Performance ------------- Evolutions (0) 0 Regions Visited (2) 400 Robots Destroyed (12) 60 Value Destroyed (400) 400 Prototype IDs (3) 60 Alien Tech Used (0) 0 Bonus (6) 6 TOTAL SCORE: 926 Bonus ------- High Alert Combat Kills 6 Cogmind --------- Core Integrity 0/250 Matter 265/300 Energy 78/100 System Corruption 5% Temperature Cool (4) Movement Flying (40) Location -10/Mines Parts ------- > --- POWER (1) -------- (None) > --- PROPULSION (2) --- Improved Flight Unit > --- UTILITY (2) ------ Experimental Sensor Array > --- WEAPON (2) ------- Improved Medium Laser > --- INVENTORY (10) --- Large Matter Pod (16) Large Matter Pod (0) Peak State ------------ > --- POWER ------------ Light Ion Engine > --- PROPULSION ------- Improved Flight Unit Improved Flight Unit > --- UTILITY ---------- Terrain Scanner Terrain Scan Processor > --- WEAPON ----------- Improved Medium Laser Improved Medium Laser > --- INVENTORY -------- Large Matter Pod Large Matter Pod [Rating: 16] Favorites ----------- Power Light Ion Engine Engine Light Ion Engine Propulsion Improved Flight Unit Flight Unit Improved Flight Unit Utility Terrain Scanner Device Terrain Scanner Storage Large Matter Pod Processor Terrain Scan Processor Weapon Improved Medium Laser Energy Gun Improved Medium Laser Launcher Mini Grenade Launcher Build | -11 -10 -10 ------- Run | Yrd Mat Min Slots Evolved . | . . . Power . | . . . Propulsion . | . . . Utility . | . . . Weapon . | . . . Parts Attached 7 | . 3 4 Power . | . . . Engine . | . . . Core . | . . . Reactor . | . . . Propulsion 1 | . 1 . Treads . | . . . Leg . | . . . Wheel . | . . . Hover . | . . . Flight 1 | . 1 . Utility 2 | . 1 1 Device 2 | . 1 1 Storage . | . . . Processor . | . . . Hackware . | . . . Protection . | . . . Artifact . | . . . Weapon 4 | . 1 3 Energy Gun 3 | . 1 2 Energy Cannon . | . . . Ballistic Gun . | . . . Ballistic Cannon . | . . . Launcher 1 | . . 1 Special Weapon . | . . . Impact Weapon . | . . . Slashing Weapon . | . . . Piercing Weapon . | . . . Special Melee Weapon . | . . . Unidentified Prototypes 1 | . . 1 Parts Lost 8 | . 1 7 Power 2 | . 1 1 Propulsion 2 | . . 2 Utility 2 | . . 2 Weapon 2 | . . 2 Highest Loss Streak 7 | . 1 7 To Critical Strikes . | . . . Average Slot Usage (%) 85 | . 90 61 Engine 11 | . 12 7 Flight 26 | . 27 22 Device 12 | . 12 9 Processor 11 | . 12 4 Energy Gun 21 | . 24 9 Launcher 1 | . . 7 Peak Build Rating 16 | . 16 16 Average Rating 13 | . 14 10 On Entrance 5 | . . 16 Naked Turns 1 | . 1 . Heaviest Build 10 | . 10 10 Greatest Support 10 | 3 10 10 Greatest Overweight (x) 1 | . 1 . Average Overweight (x) . | . . . Largest Inventory Capacity 10 | 10 10 10 Average Capacity 10 | 10 10 10 Most Carried 3 | . 3 3 Average Carried 2 | . 2 2 Final Capacity 10 | 10 10 10 Final Carried 2 | . 2 2 Class Distribution -------------------- 100% | Mutant Dominant Class ---------------- Mutant | -10/Materials Mutant | -10/Mines Resources | -11 -10 -10 ----------- Run | Yrd Mat Min Matter Collected 291 | . 211 80 Remotely . | . . . Salvage Created 331 | . 290 41 Parts . | . . . Haulers Intercepted 1 | . 1 . Recyclers Shooed . | . . . Parts Field Recycled . | . . . Retrieved Matter . | . . . Parts Self-Destructed . | . . . Prevented . | . . . Kills | -11 -10 -10 ------- Run | Yrd Mat Min Combat Hostiles Destroyed 18 | . 9 9 Guns 9 | . 7 2 AOE 9 | . 2 7 Classes Destroyed 6 | . 5 1 Tunneler 1 | . 1 . Hauler 1 | . 1 . Operator 1 | . 1 . Swarmer 6 | . 6 . Grunt 3 | . 3 . Assembled 9 | . . 9 Best Kill Streak 9 | . 3 9 Combat Bots Only 9 | . 3 9 Max Kills in Single Turn 3 | . 3 3 Gunslinging . | . . . Exploded 3 | . 2 3 Melee . | . . . Uniques/NPCs Destroyed . | . . . Combat | -11 -10 -10 -------- Run | Yrd Mat Min Hostile Shots Fired 69 | . 41 28 Missed 25 | . 13 12 Damage Taken 670 | . 274 396 Core 255 | . 116 139 Absorbed by Shields . | . . . Core Remaining (%) 100 | 100 . . Volleys Fired 68 | . 53 15 Largest 2 | . 2 2 Hottest 112 | . 112 86 Shots Fired 98 | . 80 18 Gun 90 | . 80 10 Cannon . | . . . Launcher 8 | . . 8 Special . | . . . Kinetic . | . . . Thermal 90 | . 80 10 Explosive 8 | . . 8 Electromagnetic . | . . . Robot Hit Streak 4 | . 4 4 Robot Miss Streak 10 | . 10 5 Penetration Max . | . . . Secondary Targets 1 | . 1 . Max Gunslinging Chain 1 | . 1 . Shots Hit Robots 23 | . 16 7 Core Hits 27 | . 11 16 Critical Kills . | . . . Critical Parts Destroyed . | . . . Critical Strikes 2 | . 2 . Burn 2 | . 2 . Melee Attacks . | . . . Impact . | . . . Slashing . | . . . Piercing . | . . . Sneak Attacks . | . . . Combat Hostiles . | . . . Follow-up Attacks . | . . . Damage Inflicted 1295 | . 613 682 Guns 373 | . 272 101 Cannons . | . . . Explosions 922 | . 341 581 Melee . | . . . Ramming . | . . . Kinetic . | . . . Thermal 373 | . 272 101 Explosive 922 | . 341 581 Electromagnetic . | . . . Impact . | . . . Slashing . | . . . Piercing . | . . . Highest Corruption 5 | . . 5 Average Corruption 4 | . . 4 Corruption Purged . | . . . Corruption Blocked . | . . . Effects 1 | . . 1 Message Errors 1 | . . 1 Overload Shots . | . . . Overflow Damage 97 | . 42 55 Projectiles . | . . . Explosions 97 | . 42 55 Melee . | . . . Knockbacks . | . . . Impact . | . . . Kinetic . | . . . Secondary . | . . . Self-Inflicted Damage 89 | . . 89 Shots 3 | . . 3 Rammed . | . . . Targets Rammed . | . . . Kicked . | . . . Crushed . | . . . Highest Temperature 361 | . 361 37 Average Temperature 98 | . 106 17 Received Heat Transfer 116 | . 96 20 Effects 1 | . 1 . Energy Bleed 1 | . 1 . Siege Activations . | . . . Robots Corrupted . | . . . Combat Hostiles . | . . . Parts Fried . | . . . Impact Corruptions . | . . . Robots Melted . | . . . Combat Hostiles . | . . . Parts Melted . | . . . Heat Transferred 962 | . 740 222 Parts Sabotaged . | . . . Parts Stolen . | . . . Parts Stripped . | . . . Power Chain Reactions . | . . . Alert | -11 -10 -10 ------- Run | Yrd Mat Min Peak Influence 556 | . 556 176 Initial 138 | . . 138 Average 305 | . 337 161 Maximum Alert Level 2 | . 2 . Low Security (%) 37 | 100 24 100 Level 1 29 | . 35 . Level 2 32 | . 39 . Level 3 . | . . . Level 4 . | . . . Level 5 . | . . . High Security . | . . . Max Security . | . . . Squads Dispatched 1 | . 1 . Investigation 1 | . 1 . Extermination . | . . . Reinforcement . | . . . Assault . | . . . Garrison . | . . . Intercept . | . . . Searches Triggered . | . . . Construction Impeded . | . . . Haulers Reinforced . | . . . Active Scanning Responses . | . . . Cargo Convoy Interrupts . | . . . Stealth | -11 -10 -10 --------- Run | Yrd Mat Min Distress Signals 1 | . 1 . Communications Jammed . | . . . Distress Signals . | . . . Times Spotted 33 | . 13 20 Peak Tracking Total 9 | . 5 9 Tactical Retreats 2 | . . 2 Traps | -11 -10 -10 ------- Run | Yrd Mat Min Traps Triggered 1 | . 1 . Indirectly . | . . . Trap Hack Attempts . | . . . Triggered . | . . . Disarmed . | . . . Reprogrammed . | . . . Reused . | . . . Traps Extracted . | . . . Installed . | . . . Triggered . | . . . Machines | -11 -10 -10 ---------- Run | Yrd Mat Min Machines Disabled 14 | . 14 . Max in Single Turn 1 | . 1 . Machines Repaired . | . . . Machines Dismantled . | . . . Machines Sabotaged 1 | . 1 . Overloaded Fab Kills . | . . . Hacking | -11 -10 -10 --------- Run | Yrd Mat Min Machines Accessed 7 | . 7 . Terminals 7 | . 7 . Fabricators . | . . . Repair Stations . | . . . Recycling Units . | . . . Scanalyzers . | . . . Garrison Access . | . . . Total Hacks 25 | . 25 . Successful 14 | . 14 . Failed 11 | . 11 . Catastrophic . | . . . Database Lockouts . | . . . Manual 20 | . 20 . Terminals 25 | . 25 . Fabricators . | . . . Repair Stations . | . . . Recycling Units . | . . . Scanalyzers . | . . . Garrison Access . | . . . Terminal Hacks 4 | . 4 . Emergency Access Points 1 | . 1 . Terminal Index 1 | . 1 . Alert Level 1 | . 1 . Zone Layout 1 | . 1 . Fabricator Hacks . | . . . Repair Station Hacks . | . . . Recycling Unit Hacks . | . . . Scanalyzer . | . . . Garrison Access Hacks . | . . . Unauthorized Hacks 10 | . 10 . Terminals 10 | . 10 . Track 1 | . 1 . Botnet 3 | . 3 . Skim 5 | . 5 . Sabotage 1 | . 1 . Fabricators . | . . . Repair Stations . | . . . Recycling Units . | . . . Scanalyzers . | . . . Garrison Access . | . . . Data Cores Recovered 1 | . 1 . Used 1 | . 1 . Hacking Detections 7 | . 7 . Full Trace Events 1 | . 1 . Feedback Events . | . . . Feedback Blocked . | . . . Robot Schematics Acquired . | . . . Robots Built . | . . . Authchips . | . . . Time . | . . . Total Robot Build Rating . | . . . Part Schematics Acquired . | . . . Parts Built . | . . . Authchips . | . . . Time . | . . . Total Part Build Rating . | . . . Parts Repaired . | . . . Time . | . . . Parts Recycled . | . . . Recycled Matter . | . . . Retrieved Matter . | . . . Retrieved Components . | . . . Parts Scanalyzed . | . . . Part Schematics Acquired . | . . . Parts Damaged . | . . . Bothacking | -11 -10 -10 ------------ Run | Yrd Mat Min Used RIF Installer . | . . . Robots Hacked . | . . . Non-combat . | . . . Combat . | . . . Robot Hacks Applied . | . . . Relay Couplers Released . | . . . Fabnet Peak Effective % . | . . . Robots Rewired . | . . . Allies Hacked . | . . . Hacks Repelled . | . . . Allies | -11 -10 -10 -------- Run | Yrd Mat Min Total Allies . | . . . Largest Group . | . . . Highest-Rated Group . | . . . Highest-Rated Ally . | . . . Total Orders . | . . . Ally Attacks . | . . . Total Damage . | . . . Kills . | . . . Allies Corrupted . | . . . Allies Melted . | . . . Intel | -11 -10 -10 ------- Run | Yrd Mat Min Robot Analysis Total . | . . . Derelict Logs Recovered . | . . . Drone Launches . | . . . Drone Recoveries . | . . . Exploration | -11 -10 -10 ------------- Run | Yrd Mat Min Turns Passed 578 | 2 476 100 Spaces Moved 680 | 2 513 165 Core 2 | 2 . . Treads . | . . . Legs . | . . . Wheels . | . . . Hover . | . . . Flight 678 | . 513 165 Fastest Speed 34 | 50 37 34 Average Speed 37 | 50 37 37 Slowest Speed 110 | 50 110 40 Overloaded Moves . | . . . Propulsion Burnouts . | . . . Robots Hopped 11 | . 9 2 Cave-ins Triggered . | . . . Exploration Rate (%) 47 | 2 89 52 Regions Visited 2 Branch Regions 1 Pre-discovered Areas 2 | . 2 . Known Exits Taken . | . . . Unknown Exits Taken 2 | 1 1 . Scrap Searched . | . . . Spaces Dug . | . . . Terrain Destroyed 94 | . 18 76 Melee . | . . . Projectile . | . . . AOE 94 | . 18 76 Terrain Rammed . | . . . Walls Destroyed . | . . . Machines Disabled . | . . . Actions | -11 -10 -10 --------- Run | Yrd Mat Min Total 894 | 2 709 183 Wait 148 | 1 147 . Move 657 | 1 495 161 Hop 10 | . 8 2 Pick Up . | . . . Fast Attach 3 | . 2 1 Attach 3 | . 1 2 Detach 4 | . 3 1 Swap 1 | . . 1 Drop . | . . . Fire 68 | . 53 15 Melee . | . . . Ram . | . . . Kick . | . . . Crush . | . . . Escape Stasis . | . . . Rewire . | . . . Trap . | . . . Miscellaneous . | . . . Route ------- -11/Scrapyard -10/Materials (discovered 5 exits: *Mat x3 / [*Min x2]) -10/Mines History --------- Turn | Location | Event 2 | -11/Scrapyard | Discovered new exit (range 1) 3 | -11/Scrapyard | Entered Materials 71 | -10/Materials | Discovered new exit (range 5) 224 | -10/Materials | Discovered new exit (range 11) 232 | -10/Materials | Discovered new exit (range 12) 301 | -10/Materials | Discovered new exit (range 4) 312 | -10/Materials | Build established: Mutant 382 | -10/Materials | Learned Storage emergency access door positions 415 | -10/Materials | Loaded intel: 39 machine locations 439 | -10/Materials | Learned 2 Storage zone layouts 457 | -10/Materials | Learned Recycling recycling unit intel 458 | -10/Materials | Loaded intel: 8 terminal locations 459 | -10/Materials | Identified exit to Materials 460 | -10/Materials | Learned location of Mines (-10) 463 | -10/Materials | Learned location of Mines (-8) 477 | -10/Materials | Learned Storage garrison access intel 479 | -10/Materials | Entered Mines 480 | -10/Mines | Assembled infested the area 485 | -10/Mines | Assisted by a Guerilla fighting off Assembled 525 | -10/Mines | Core integrity fell below 50% 547 | -10/Mines | Destroyed 9 combat bots 553 | -10/Mines | Core integrity fell below 20% 563 | -10/Mines | Found a damaged Exp. Sensor Array with a note attached 564 | -10/Mines | Found Prototype Device 564 | -10/Mines | Identified Exp. Sensor Array 570 | -10/Mines | Lost 7 parts (1p2n2u2w) 579 | -10/Mines | Destroyed by S-10 Pest with Light Assault Rifle Last Messages --------------- 00529_ Acquired 10 matter. 00533_ Destroyed Asb. F-torch. 00536_ Z R ZI,MCLMMQ8P NY6SOU /=K:Z7BF7FOR 00536_ The unstable cave ceiling collapses. 00536_ as-47434 destroyed. 00536_ Mni. Grenade Launcher destroyed. 00536_ Terrain Scanner destroyed. 00539_ VTOL Module destroyed. 00544_ T-07 Excavator is excavating. 00546_ T-07 Excavator destroyed. 00563_ A damaged part is partially visible under some rubble. There's a note attached: "Everyone keeps telling us we should avoid high-traffic areas because that's where patrols are more likely to show up, but that doesn't do us much good if we can't spot those areas until they're on top of us... With this we can! Deliver it to Megawrench for repairs then we'll never be afraid of an ambush while sneaking around Materials again, ha." 00564_ Acquired Prototype Device. 00564_ Identified Exp. Sensor Array. 00577_ S-10 Pest destroyed. Map ----- +----------------------------------------------------+ | ?????????????????????????????????????????# | | ?????????????????????????????????????????# ####### | | ?????????????????????????????????????????# #?????? | | ?????????????????????????????????????????# ##????? | | ????????????????????????????????????????## ##???? | | ????????????????????????????????????????# ##??? | | ????????????????????????????????????????# #??? | | ????????????????????????????????????????## #??? | | ?????????????????????????????????????????# #??? | | ?????????????????????????????????????????# ##??? | | ?????????????????????????????????????????# #???? | | ????????????????????????????????????????## #???? | | ????????????????????????????????????????# ##???? | | ???????????????????????????????????????## ##????? | | ?????????????????????????????????????### ##?????? | | ????????????????????????????????????## ##??????? | | ????????????????????????????????????# ##???????? | | ????????????????????????????????????# ##????????? | | ???????????????????????????????????## #?????????? | | ??????????????????????????????????## #?????????? | | ?????????????????????????????????## #?????????? | | ?????????????????????????????????# ##????????? | | ?????????????????????????????????# ##???????? | | ?????????????????????????????????# #???????? | | ???????????????""" ############### #???????? | | ???????????????""" @ #???????? | | ?????????????# s ##???????? | | ?????????????# s % ################# ##????????? | | ?????????????# ???????????????????####?????????? | | ?????????????????????????????????????????????????? | | ?????????????????????????????????????????????????? | | | | | | | | | | | | | | | | | | | | | | | | | | | | | | | | | | | | | | | +----------------------------------------------------+ Best States ------------- Heat Dissipation 25 Energy Generation 10 Energy Capacity 125 Matter Stores 300 Matter Capacity 300 Sight Range 16 Robot Scan Range 20 Terrain Scan Range 14 Terrain Scan Density 85 Evasion (%) 63 Item Schematics ----------------- None Robot Schematics ------------------ None Fabricated ------------ Nothing Alien Tech Used ----------------- None Achievements -------------- None Challenges ------------ None Cogshop Purchases (12) ------------------------ Lrg. Matter Pod (599) Lrg. Matter Pod (599) Imp. Flight Unit (1049) Imp. Flight Unit (1049) Imp. Medium Laser (699) Terrain Scanner (599) Terrain Scan Processor (699) Lgt. Ion Engine (599) Imp. Medium Laser (738) Lgt. Ion Engine (611) Mni. Grenade Launcher (1107) VTOL Module (1385) Game ------ Seed ArmageddonScrapoidSuite Manual? 0 Play Time 00:08:34 Cumulative 849.7 hours Start 2024.08.10 @ 15:27:24 End 2024.08.10 @ 15:34:03 Sessions 1 Manual Loads 0 Difficulty Rogue Special Mode AFD2019/Pay2Buy Game No. 1015 Rogue 736 Adventurer 124 Explorer 155 Win Type - Total 35 Types 27/0/6/1/0/0/0/1/0 Lore% 72 Gallery% 89 Achievement% 78 Wizard Run 0 Options --------- Layout 0 ASCII 0 Keyboard 1 Movement Numpad Keybinds 0 Fullscreen 2 Font 18/Smallcaps Map View 76x50 Zoom Use 0% Tactical HUD 1 Map Filters NONE Filters NONE Steam 1 RUN: 416b1f34-b3b3-4086-9066-1b8fbd428339